bitfinex/quotes_ETHUSD_20250908
["timestamp","ask_amount","ask_price","bid_price","bid_amount"]
[1757291970236,0.3089,4316.3,4316.2,2.31683689]
[1757291970435,1.2373,4316.3,4316.2,2.31683689]
[1757291971072,0.8088,4316.3,4316.2,2.31683689]
[1757291971255,0.4999,4316.3,4316.2,2.31683689]
[1757291971562,0.8088,4316.3,4316.2,2.31685278]
[1757291972081,0.8088,4316.3,4315.9,2.31701035]
[1757291972226,0.9284,4316.2,4315.8,0.1402]
[1757291972423,0.9284,4316.2,4315.8,0.025]
[1757291972626,0.3089,4315.9,4315.8,2.34206049]
[1757291972867,0.4999,4316.1,4316.0,2.31696014]
[1757291973162,0.8088,4316.1,4316.0,2.31696014]
[1757291974155,1.2373,4316.1,4315.9,2.31700879]
[1757291974354,0.7374,4316.1,4316.0,2.31696014]
[1757291974686,0.7374,4316.1,4315.8,0.025]
[1757291974687,0.792,4316.0,4315.8,0.025]
[1757291974972,0.792,4315.8,4315.1,0.69573203]
[1757291975168,0.3089,4315.2,4314.9,0.002]
[1757291975357,3.907,4315.1,4314.9,0.002]
[1757291975561,4.4069,4315.1,4314.9,2.31954443]
[1757291975763,0.8088,4315.0,4314.9,0.002]
[1757291978055,4.3355,4315.1,4314.9,0.002]
[1757291978056,3.907,4315.1,4314.9,0.002]
[1757291978237,3.907,4315.1,4314.9,2.31949815]
[1757291978657,4.4069,4315.1,4314.9,0.002]
[1757291979496,4.4069,4315.1,4314.9,2.31954543]
[1757291979861,4.4069,4315.1,4314.9,0.002]
[1757291980654,3.907,4315.1,4314.9,0.002]
[1757291980881,3.907,4315.1,4315.0,2.6188971]
[1757291981360,3.907,4315.1,4315.0,2.3174971]
[1757291982253,3.907,4315.1,4315.0,2.6188971]
[1757291982894,3.907,4315.1,4315.0,17.49044307]
[1757291983220,4.4079,4315.9,4315.8,2.31706751]
[1757291983961,4.7168,4315.9,4315.8,2.31706751]
[1757291984800,4.832,4315.9,4315.8,2.31706751]
[1757291985261,4.0232,4315.9,4315.8,2.61846751]
[1757291986711,4.0232,4315.9,4315.8,2.31706751]
[1757291986883,4.832,4315.9,4315.8,2.31706751]
[1757291987085,4.832,4315.9,4315.2,0.1152]
[1757291987385,0.4285,4315.8,4315.2,0.1152]
[1757291987580,4.5231,4315.9,4315.8,2.31706751]
[1757291987802,4.832,4315.9,4315.8,2.31706751]
[1757291988802,4.832,4315.9,4315.2,0.1152]
[1757291988803,5.2605,4315.9,4315.4,2.31723079]
[1757291988970,2.30465311,4316.4,4316.3,2.31679911]
[1757291989176,6.21265311,4316.4,4316.3,2.31679911]
[1757291989379,5.71275311,4316.4,4316.3,2.61819911]
[1757291992709,5.71275311,4316.4,4316.3,2.31679911]
[1757291992913,6.21265311,4316.4,4316.3,2.31679911]
[1757291993396,6.52255311,4316.4,4316.3,2.31679911]
[1757291993599,7.10105311,4316.4,4316.3,2.31679911]
[1757291993916,7.10105311,4316.4,4316.1,2.31686704]
[1757291994099,0.914,4316.3,4315.9,2.31701383]
[1757291994298,6.13785311,4316.4,4315.8,0.002]
[1757291994299,0.3005,4316.0,4315.8,0.002]
[1757291994609,3.907,4315.9,4315.8,5.31906751]
[1757291994821,3.907,4315.9,4315.8,5.61046751]
[1757291999483,4.2075,4315.9,4315.8,5.31906751]
[1757291999684,4.6582,4315.9,4315.8,5.31906751]
[1757292000218,4.3577,4315.9,4315.8,5.31906751]
[1757292000514,3.907,4315.9,4315.8,5.61046751]
[1757292000717,3.907,4315.9,4315.8,6.06556751]
[1757292001512,3.907,4315.9,4315.8,5.61046751]
[1757292002099,4.6582,4315.9,4315.8,5.31906751]
[1757292002999,5.58732,4315.9,4315.8,0.002]
[1757292005218,5.1215,4315.9,4315.8,0.002]
[1757292006025,2.2317,4316.4,4315.9,2.31701383]
[1757292006225,3.907,4316.3,4315.8,0.4571]
[1757292006395,3.907,4316.3,4316.2,2.60825278]
[1757292008519,5.1215,4316.3,4316.0,2.31695685]
[1757292008728,0.914,4316.2,4315.8,2.31906392]
[1757292008895,0.914,4316.1,4315.8,0.002]
[1757292009094,0.3005,4315.9,4315.8,2.31906751]
[1757292009531,0.7512,4315.9,4315.8,2.31906751]
[1757292009932,0.4507,4315.9,4315.8,2.31906751]
[1757292010834,0.7512,4315.9,4315.8,0.002]
[1757292011017,0.7512,4315.9,4315.8,2.31906751]
[1757292011400,0.4507,4315.9,4315.8,2.31906751]
[1757292011602,3.907,4316.0,4315.9,5.31701383]
[1757292011797,3.907,4316.0,4315.9,5.60841383]
[1757292013720,3.907,4316.0,4315.9,6.06351383]
[1757292014645,0.001,4316.3,4315.9,3.7465]
[1757292014805,0.001,4316.3,4316.2,2.31685278]
[1757292015003,2.607,4316.3,4316.2,2.31685278]
[1757292015338,2.607,4316.3,4316.2,6.06335278]
[1757292016046,2.607,4316.3,4316.2,5.60825278]
[1757292016742,2.607,4316.3,4316.2,6.06335278]
[1757292017741,0.001,4316.3,4316.2,6.17855278]
[1757292017951,0.001,4316.3,4316.2,6.8741106]
[1757292018133,0.001,4316.3,4316.2,6.17855278]
[1757292020521,0.001,4316.3,4316.2,6.35495657]
[1757292023657,1.204,4316.3,4316.2,5.31685278]
[1757292024074,0.001,4316.3,4316.2,5.31685278]
[1757292024259,0.001,4316.3,4316.2,5.62215278]
[1757292025980,0.001,4316.3,4316.2,6.20895278]
[1757292028885,0.7671,4316.3,4316.2,5.43205278]
[1757292029446,0.4689,4316.3,4316.2,5.43205278]
[1757292029835,0.001,4316.3,4316.2,5.73735278]
[1757292032272,0.001,4316.3,4316.2,5.43205278]
[1757292032478,0.001,4316.3,4316.2,11.21635441]
[1757292032855,0.001,4316.3,4316.2,15.59295441]
[1757292033056,0.026,4316.8,4316.7,2.31658442]
[1757292033254,0.026,4316.8,4316.7,14.81578605]
[1757292033459,0.026,4316.8,4316.7,15.59268605]
[1757292034070,0.001,4317.0,4316.9,2.3164771]
[1757292034271,0.001,4317.0,4316.9,9.24464187]
[1757292034472,0.001,4317.0,4316.9,9.5267771]
[1757292034657,0.001,4317.0,4316.9,9.9983771]
[1757292039362,0.001,4317.0,4316.9,10.09109858]
[1757292039758,1.804,4317.8,4316.9,10.09109858]
[1757292039759,1e-08,4317.4,4317.0,3.0]
[1757292039958,1e-08,4317.4,4317.2,3.0]
[1757292040163,1e-08,4317.4,4317.3,9.64076247]
[1757292040386,1e-08,4317.4,4317.3,10.11236247]
[1757292042896,0.06549999,4318.2,4317.7,2.31604789]
[1757292043102,0.06549999,4318.2,4318.1,0.3053]
[1757292043263,0.06549999,4318.2,4318.1,9.66249168]
[1757292043592,0.06549999,4318.2,4318.1,10.11093335]
[1757292043796,0.06549999,4318.2,4318.1,10.57883335]
[1757292044094,1.26849999,4318.2,4318.1,9.80193335]
[1757292044593,1.26849999,4318.2,4318.1,9.33403335]
[1757292045470,0.83159999,4318.2,4318.1,9.33403335]
[1757292045773,1.26849999,4318.2,4318.1,3.1152]
[1757292045973,1.39534999,4318.2,4317.0,2.31642242]
[1757292046188,0.9048,4318.1,4317.8,2.31594926]
[1757292046392,0.9048,4318.1,4317.9,2.31592857]
[1757292046618,1.203,4318.0,4317.9,2.31592857]
[1757292047002,1.203,4318.0,4317.8,2.31598646]
[1757292047196,0.9058,4317.9,4317.8,2.31598646]
[1757292047389,1.204,4317.9,4317.8,2.31598646]
[1757292047589,1.204,4317.9,4317.2,5.31630021]
[1757292047801,0.9048,4317.8,4317.5,2.31614072]
[1757292048111,0.2982,4317.6,4317.5,2.31614072]
[1757292048415,1.203,4317.6,4317.5,2.31614072]
[1757292048917,0.001,4317.9,4317.6,3.0]
[1757292049090,0.001,4317.9,4317.8,5.31599425]
[1757292049616,0.001,4317.9,4317.8,5.62129425]
[1757292049981,0.7671,4317.9,4317.8,5.31599425]
[1757292051083,0.7671,4317.9,4317.8,9.21899425]
[1757292051283,0.4689,4317.9,4317.8,9.21899425]
[1757292051483,0.001,4317.9,4317.8,9.52429425]
[1757292051882,0.7671,4317.9,4317.8,9.21899425]
[1757292052713,0.7671,4317.9,4317.8,5.31599425]
[1757292052902,1.204,4317.9,4317.8,5.31599425]
[1757292053786,1.204,4317.9,4317.8,2.31599425]
[1757292054383,1.3244,4317.9,4317.1,5.681]
[1757292054708,0.9235,4317.8,4317.0,3.902]
[1757292054920,0.9235,4317.8,4317.6,2.31609158]
[1757292055106,1.2377,4317.7,4317.6,2.31609158]
[1757292055615,0.8074,4317.7,4317.6,2.31609158]
[1757292057624,0.7574,4317.7,4317.6,2.31609158]
[1757292058025,0.4932,4317.7,4317.6,2.31609158]
[1757292058222,0.001,4317.9,4317.7,5.31604789]
[1757292058425,0.001,4317.9,4317.8,2.31599425]
[1757292058625,0.001,4317.9,4317.8,5.63129425]
[1757292059430,0.001,4317.9,4317.8,5.31599425]
[1757292059590,0.8084,4317.9,4317.8,5.31599425]
[1757292059797,1.2387,4317.9,4317.8,5.31599425]
[1757292059993,0.001,4317.9,4317.8,5.31599425]
[1757292060317,0.3152,4317.9,4317.8,5.31599425]
[1757292060494,0.8084,4317.9,4317.8,5.31599425]
[1757292060695,1.2387,4317.9,4317.8,3.0]
[1757292060895,1.2387,4317.9,4317.8,5.31599425]
[1757292061591,1.2387,4317.9,4317.8,3.0]
[1757292061797,1.36257,4317.9,4317.1,3.902]
[1757292062005,0.4932,4317.8,4317.7,2.31600689]
[1757292062300,1.2377,4317.8,4317.7,2.31600689]
[1757292063897,1.2377,4317.8,4317.7,2.31604789]
[1757292064094,1.2377,4317.8,4317.5,5.31610791]
[1757292064333,0.3142,4317.8,4317.7,4.63618954]
[1757292064535,0.3142,4317.8,4317.7,6.95223743]
[1757292064998,0.8074,4317.8,4317.7,6.95223743]
[1757292066500,0.001,4317.9,4317.8,2.31599425]
[1757292066702,0.001,4317.9,4317.8,5.31599425]
[1757292066904,0.001,4317.9,4317.8,5.63129425]
[1757292067403,0.001,4317.9,4317.8,6.10459425]
[1757292068102,0.001,4317.9,4317.8,10.00659425]
[1757292068425,0.001,4317.9,4317.8,10.12179425]
[1757292073904,0.4942,4317.9,4317.8,5.74649425]
[1757292074212,0.8084,4317.9,4317.8,9.33219425]
[1757292074413,0.4942,4317.9,4317.8,9.33219425]
[1757292074943,0.001,4317.9,4317.8,9.64749425]
[1757292075144,0.001,4317.9,4317.8,10.12079425]
[1757292083547,0.001,4317.9,4317.8,9.33119425]
[1757292083759,0.786,4317.9,4317.8,5.43119425]
[1757292083964,0.786,4317.9,4317.8,9.61639425]
[1757292083965,0.001,4317.9,4317.8,9.61639425]
[1757292084365,0.001,4317.9,4317.8,10.05969425]
[1757292087267,0.001,4318.4,4317.8,10.05969425]
[1757292087268,0.001,4318.4,4317.9,5.31594061]
[1757292087492,0.001,4318.4,4318.3,7.63618954]
[1757292087647,0.001,4318.4,4318.3,14.13711563]
[1757292087847,0.001,4318.4,4318.3,14.25231563]
[1757292088050,0.001,4318.4,4318.3,14.42811286]
[1757292088761,1.24,4318.4,4318.3,13.96711563]
[1757292088937,0.786,4318.4,4318.3,10.06711563]
[1757292089136,0.786,4318.4,4318.3,13.96711563]
[1757292089455,0.4858,4318.4,4318.3,13.96711563]
[1757292089657,0.001,4318.4,4318.3,10.35231563]
[1757292089868,0.001,4318.4,4318.3,14.25231563]
[1757292090369,0.001,4318.4,4318.3,19.33180517]
[1757292090668,0.001,4318.4,4318.3,19.50784543]
[1757292091644,0.001,4318.4,4318.3,14.87165589]
[1757292091847,0.001,4318.4,4318.3,14.42835589]
[1757292092049,0.786,4318.4,4318.3,14.14315589]
[1757292093475,0.4858,4318.4,4318.3,14.14315589]
[1757292093647,0.4858,4318.4,4318.3,14.42835589]
[1757292093843,0.001,4318.4,4318.3,19.06454543]
[1757292094048,0.001,4318.4,4318.3,19.50784543]
[1757292095795,0.001,4318.4,4318.3,19.06454543]
[1757292095948,0.001,4318.4,4318.3,19.50784543]
[1757292097247,0.025,4318.8,4318.7,2.31551161]
[1757292097447,0.025,4318.8,4318.7,13.85070115]
[1757292097645,1e-08,4318.9,4318.8,5.31545799]
[1757292097862,1e-08,4318.9,4318.8,5.75875799]
[1757292098058,1e-08,4318.9,4318.8,6.04395799]
[1757292098264,0.025,4319.8,4319.4,2.31513636]
[1757292098554,0.025,4319.8,4319.7,9.95116511]
[1757292098772,0.025,4319.8,4319.7,10.06636511]
[1757292098983,1.264,4319.8,4319.7,10.06636511]
[1757292100651,0.81,4319.8,4319.7,10.76138955]
[1757292101068,1.264,4319.8,4319.7,10.76138955]
[1757292101262,0.81,4319.8,4319.7,10.76138955]
[1757292101667,0.81,4319.8,4319.7,8.44641398]
[1757292102299,0.81,4319.8,4319.7,10.76138955]
[1757292102300,0.811,4319.8,4319.7,10.76138955]
[1757292102664,1.265,4319.8,4319.7,8.44641398]
[1757292102868,1.265,4319.8,4319.7,3.0]
[1757292105057,1.8027874,4319.8,4319.2,0.69510818]
[1757292105276,0.9388,4319.7,4319.2,3.0]
[1757292105654,0.3002,4319.3,4319.2,3.0]
[1757292105856,1.239,4319.3,4319.2,3.0]
[1757292106057,1.239,4319.3,4319.2,5.31524356]
[1757292106386,1.239,4319.3,4319.2,3.0]
[1757292107691,0.785,4319.3,4319.2,5.31524356]
[1757292107994,0.4848,4319.7,4319.2,5.60044356]
[1757292108193,0.1412,4319.8,4319.2,5.60044356]
[1757292108194,0.3002,4319.3,4319.2,3.0]
[1757292108358,0.785,4319.3,4319.2,7.63618954]
[1757292108687,0.785,4319.3,4319.2,9.9514331]
[1757292109093,0.785,4319.3,4319.2,7.63618954]
[1757292109291,1.239,4319.3,4319.2,7.63618954]
[1757292109691,0.785,4319.3,4319.2,7.63618954]
[1757292110063,0.785,4319.3,4319.2,9.9514331]
[1757292110266,0.4848,4319.3,4319.2,9.9514331]
[1757292110575,0.785,4319.3,4319.2,5.31524356]
[1757292110895,0.785,4319.3,4319.2,5.80004356]
[1757292111193,0.4848,4319.3,4319.2,5.80004356]
[1757292111390,0.785,4319.3,4319.2,5.80004356]
[1757292111592,0.785,4319.3,4319.2,3.4848]
[1757292111783,0.785,4319.3,4319.2,5.80004356]
[1757292112407,0.454,4319.7,4319.5,2.31505775]
[1757292112608,0.026,4319.8,4319.5,5.47182126]
[1757292112919,0.026,4319.8,4319.7,5.60017557]
[1757292113368,1.2591,4319.8,4319.7,3.0]
[1757292114724,1.2591,4319.8,4319.7,5.31497557]
[1757292114725,0.5111,4319.8,4319.7,5.31497557]
[1757292114882,0.5111,4319.8,4319.7,3.0]
[1757292117393,0.026,4319.8,4319.7,6.30973382]
[1757292118073,0.806,4319.8,4319.7,6.01003382]
[1757292118384,0.806,4319.8,4319.7,3.69505825]
[1757292118385,1.2591,4319.8,4319.7,3.69505825]
[1757292118580,0.806,4319.8,4319.7,3.69505825]
[1757292118785,0.5111,4319.8,4319.7,6.01003382]
[1757292119183,0.5111,4319.8,4319.7,5.31497557]
[1757292119509,0.026,4319.8,4319.7,5.61467557]
[1757292119676,0.806,4319.8,4319.7,3.0]
[1757292120993,1.2591,4319.8,4319.7,3.0]
[1757292121396,1.57633,4319.8,4319.7,3.0]
[1757292122027,1.57633,4319.8,4319.5,3.01016206]
[1757292122028,2.31502916,4319.6,4319.5,0.69509207]
[1757292122198,7.44412916,4319.6,4319.5,0.69509207]
[1757292122572,2.31517803,4319.4,4318.8,0.002]
[1757292122704,2.31526272,4319.2,4318.8,0.002]
[1757292122901,0.2949,4318.9,4318.8,0.002]
[1757292123307,0.78,4318.9,4318.8,0.002]
[1757292123933,3.896,4319.7,4318.8,4.3444]
[1757292124143,3.896,4319.7,4319.5,3.0]
[1757292124431,3.896,4319.7,4319.6,5.61472916]
[1757292124597,0.026,4319.8,4319.7,5.31497557]
[1757292124790,0.026,4319.8,4319.7,2.31497557]
[1757292125030,0.026,4319.8,4319.7,3.05127557]
[1757292127328,0.026,4319.8,4319.7,3.07442532]
[1757292127491,0.026,4319.8,4319.7,10.55337557]
[1757292129508,0.026,4319.8,4319.7,5.72987557]
[1757292129706,0.026,4319.8,4319.7,15.09769683]
[1757292130100,0.026,4319.8,4319.7,15.53429683]
[1757292131518,0.026,4319.8,4319.7,16.02519683]
[1757292131926,0.026,4319.8,4319.7,16.04439683]
[1757292132546,1.2591,4319.8,4319.7,0.5101]
[1757292132700,1.2591,4319.8,4318.8,5.47382126]
[1757292132701,1.38701,4319.8,4318.8,0.002]
[1757292132908,1.2591,4319.8,4319.3,2.31513924]
[1757292133109,0.3209,4319.8,4319.4,2.3151155]
[1757292133430,0.9382,4319.7,4319.3,2.31518114]
[1757292133608,0.2949,4319.4,4319.2,3.01038251]
[1757292134000,0.2949,4319.4,4319.3,2.31518996]
[1757292134205,0.9382,4319.6,4319.5,2.31508276]
[1757292134206,0.4851,4319.6,4319.5,2.31508276]
[1757292134401,0.78,4319.6,4319.5,2.31508276]
[1757292134810,0.78,4319.6,4319.4,5.31513554]
[1757292135143,0.026,4319.8,4319.7,2.31497557]
[1757292135342,0.026,4319.8,4319.7,10.78679683]
[1757292135506,0.026,4319.8,4319.7,11.08649683]
[1757292136031,0.026,4319.8,4319.7,10.78679683]
[1757292136369,0.026,4319.8,4319.7,11.48180356]
[1757292136640,0.026,4319.8,4319.7,11.78150356]
[1757292137028,0.026,4319.8,4319.7,12.21810356]
[1757292137646,0.026,4319.8,4319.7,12.70900356]
[1757292138636,0.026,4319.8,4319.7,12.21810356]
[1757292139437,0.026,4319.8,4319.7,12.70900356]
[1757292140120,0.026,4319.8,4319.7,12.21810356]
[1757292142242,0.026,4319.8,4319.7,15.37680356]
[1757292142458,0.026,4319.8,4319.7,16.11310356]
[1757292142747,0.026,4319.8,4319.7,16.22830356]
[1757292143555,0.026,4319.8,4319.7,15.49200356]
[1757292143710,0.3339,4319.8,4319.7,11.59700356]
[1757292143906,0.7982,4319.8,4319.7,11.59700356]
[1757292144112,0.7982,4319.8,4319.7,15.49200356]
[1757292144446,0.3339,4319.8,4319.7,15.49200356]
[1757292144810,0.3339,4319.8,4319.7,0.69500673]
[1757292144811,1.2496,4319.8,4319.7,0.69500673]
[1757292145046,3.92298174,4319.8,4318.8,0.002]
[1757292145252,3.56452741,4319.8,4319.0,0.4514]
[1757292145449,1.2496,4319.8,4318.8,0.002]
[1757292145659,0.7853,4319.8,4319.6,2.31502792]
[1757292146346,0.3339,4319.8,4319.6,2.31502792]
[1757292146552,0.4514,4319.7,4319.2,2.31519288]
[1757292146755,0.4514,4319.6,4319.5,2.31508276]
[1757292147119,0.7593,4319.6,4319.5,2.31508276]
[1757292147620,0.7593,4319.6,4319.4,2.31512666]
[1757292147819,0.4514,4319.5,4319.4,2.31512666]
[1757292148054,0.7593,4319.5,4319.4,2.31513636]
[1757292148449,0.3079,4319.5,4319.4,2.31513636]
[1757292148837,0.7593,4319.5,4319.2,2.31522406]
[1757292149043,0.3079,4319.5,4319.1,7.78710859]
[1757292149219,0.4514,4319.4,4319.1,7.78710861]
[1757292149420,0.026,4319.8,4319.2,0.4745]
[1757292149821,0.4514,4319.7,4319.4,2.31512219]
[1757292150115,0.3079,4319.5,4319.4,2.31512219]
[1757292150543,0.7593,4319.5,4319.4,2.31512219]
[1757292151421,0.3079,4319.5,4319.4,2.31512219]
[1757292152050,0.3079,4319.5,4319.3,2.31517998]
[1757292152253,0.7593,4319.5,4319.3,2.31517998]
[1757292152455,0.026,4319.8,4319.3,0.4745]
[1757292152682,0.4514,4319.7,4319.1,5.92322126]
[1757292152858,0.4514,4319.7,4319.3,2.31515639]
[1757292153025,0.4514,4319.7,4319.4,2.31508439]
[1757292153225,0.4514,4319.7,4319.5,2.31503091]
[1757292153562,0.4514,4319.6,4319.5,2.31503091]
[1757292153856,0.7593,4319.6,4319.5,2.31503091]
[1757292154060,0.3079,4319.6,4319.5,2.31503091]
[1757292155324,0.3079,4319.6,4319.4,0.1152]
[1757292155958,0.4514,4319.5,4318.9,2.31539939]
[1757292156163,0.4514,4319.4,4319.0,2.43053248]
[1757292156368,0.4514,4319.3,4319.1,2.31529236]
[1757292156661,0.7593,4319.2,4319.1,2.31529236]
[1757292157050,0.7593,4319.2,4319.0,0.1152]
[1757292157245,0.46543,4319.1,4318.8,0.002]
[1757292157647,0.3079,4318.9,4318.8,2.31745799]
[1757292158569,0.3079,4318.9,4318.8,0.002]
[1757292158740,0.7593,4318.9,4318.8,0.002]
[1757292159140,0.7593,4318.9,4318.8,2.31745799]
[1757292160360,0.3079,4318.9,4318.8,2.31745799]
[1757292160552,0.1152,4319.2,4319.0,2.31532517]
[1757292160752,0.1152,4319.2,4318.8,3.08595656]
[1757292160959,0.1152,4319.2,4319.0,2.31531337]
[1757292161762,0.1152,4319.2,4319.1,2.31529716]
[1757292161960,0.1152,4319.2,4319.0,2.78984996]
[1757292162163,0.3079,4319.1,4319.0,2.31534996]
[1757292162566,0.3079,4319.1,4318.8,0.002]
[1757292162567,0.3079,4319.1,4318.9,2.31538774]
[1757292162764,0.3079,4319.1,4318.8,0.002]
[1757292162966,0.4514,4319.0,4318.8,0.002]
[1757292163167,3.895,4319.3,4319.1,2.31529716]
[1757292163368,3.895,4319.3,4319.2,2.60924356]
[1757292163568,3.895,4319.3,4319.2,3.08374356]
[1757292163758,1.778,4319.4,4319.3,2.31518996]
[1757292164086,1.778,4319.4,4319.3,3.25948996]
[1757292164277,1.778,4319.4,4319.3,3.55348996]
[1757292164846,1.778,4319.4,4319.3,3.08368996]
[1757292168049,1.778,4319.4,4319.3,2.78968996]
[1757292168382,2.0859,4319.4,4319.3,2.31518996]
[1757292168880,0.1152,4319.3,4318.8,0.002]
[1757292169180,0.1152,4319.3,4318.9,2.31538841]
[1757292169361,0.3079,4319.0,4318.9,2.31538841]
[1757292169544,4.6543,4319.0,4318.9,2.31538841]
[1757292169745,0.3079,4319.0,4318.9,2.31538841]
[1757292169945,1.778,4319.4,4319.3,2.31518996]
[1757292170158,5.9809,4319.4,4319.3,2.31518996]
[1757292171583,1.778,4319.4,4319.3,3.08368996]
[1757292171774,5.674,4319.4,4319.3,3.08368996]
[1757292172381,5.674,4319.4,4319.3,7.71605806]
[1757292173374,5.9728,4319.4,4319.3,6.94755806]
[1757292174056,5.674,4319.4,4319.3,6.94755806]
[1757292174668,5.673,4319.4,4319.3,6.94755806]
[1757292176092,3.895,4319.4,4319.3,6.94755806]
[1757292176790,3.895,4319.4,4319.3,6.94955806]
[1757292177787,3.895,4319.4,4319.3,7.23775806]
[1757292177991,3.895,4319.4,4319.3,7.71165806]
[1757292178368,0.026,4319.8,4319.3,5.3964681]
[1757292178557,0.026,4319.8,4319.7,6.94734367]
[1757292178758,3.921,4319.8,4319.7,6.94734367]
[1757292178959,3.921,4319.8,4319.7,2.31497557]
[1757292179276,4.2198,4319.8,4319.7,2.31497557]
[1757292181210,4.2198,4319.8,4319.5,0.1152]
[1757292181515,0.1152,4319.6,4319.3,0.002]
[1757292181805,3.895,4319.5,4319.3,0.002]
[1757292182041,0.2988,4319.4,4319.3,0.002]
[1757292182484,0.7473,4319.4,4319.3,0.002]
[1757292182664,1.50321681,4319.4,4319.3,0.002]
[1757292183461,3.81835317,4319.4,4319.3,0.002]
[1757292184393,1.50321681,4319.4,4319.3,0.002]
[1757292185367,5.39821681,4319.4,4319.3,0.002]
[1757292186281,0.026,4319.8,4319.7,2.31497557]
[1757292186464,0.026,4319.8,4319.7,8.16494367]
[1757292187003,0.026,4319.8,4319.7,7.70944367]
[1757292187503,0.3248,4319.8,4319.3,2.79106594]
[1757292187799,0.4485,4319.7,4319.5,2.31506952]
[1757292187999,4.1938,4319.6,4319.5,2.31506952]
[1757292192103,4.1938,4319.6,4319.3,2.31718721]
[1757292192263,4.1938,4319.6,4319.4,2.31511913]
[1757292192468,4.6423,4319.6,4319.4,2.31511913]
[1757292192671,3.895,4319.6,4319.5,2.31508276]
[1757292193092,4.1938,4319.6,4319.5,2.31508276]
[1757292194010,5.24408,4319.6,4319.3,0.002]
[1757292194302,0.4485,4319.5,4319.3,0.002]
[1757292194688,0.2988,4319.4,4319.3,0.002]
[1757292194893,0.7473,4319.4,4319.3,0.002]
[1757292195093,1.50320617,4319.4,4319.3,0.002]
[1757292197070,3.81834253,4319.4,4319.3,0.002]
[1757292197276,1.50320617,4319.4,4319.3,0.002]
[1757292198686,4.61034253,4319.4,4319.3,0.002]
[1757292199097,9.35192453,4319.4,4319.3,0.002]
[1757292199296,9.13504179,4319.4,4319.3,0.002]
[1757292199818,16.98415842,4319.4,4319.3,0.002]
[1757292206183,17.10511488,4319.4,4319.3,0.002]
[1757292207322,24.16511488,4319.4,4319.3,0.002]
[1757292210409,23.94781929,4319.4,4319.3,0.002]
[1757292210610,24.16378057,4319.4,4319.3,0.002]
[1757292210815,17.10378057,4319.4,4319.3,0.002]
[1757292212018,19.54378057,4319.4,4319.3,0.002]
[1757292212687,19.71831489,4319.4,4319.3,0.002]
[1757292214791,3.10751161,4318.7,4318.6,0.002]
[1757292214992,0.792,4318.4,4317.6,0.002]
[1757292215191,15.147726,4318.4,4317.6,0.002]
[1757292215425,15.09775143,4318.4,4317.7,0.4697]
[1757292215586,17.3656594,4318.4,4317.6,0.4381]
[1757292215791,12.7332913,4318.4,4317.9,0.4697]
[1757292217986,13.2061913,4318.4,4317.9,0.4697]
[1757292218320,13.42208659,4318.4,4317.9,0.4697]
[1757292219918,16.48902626,4318.4,4317.8,0.027]
[1757292225237,23.54902626,4318.4,4317.8,0.027]
[1757292226203,19.18112626,4318.4,4317.8,0.027]
[1757292226403,23.19812249,4318.4,4318.0,0.4697]
[1757292227414,23.19812249,4318.4,4318.3,0.4717]
[1757292227834,3.10794061,4317.9,4317.8,0.4631]
[1757292228034,5.22678761,4317.9,4317.8,0.4631]
[1757292228246,12.15130267,4317.9,4317.8,0.7775]
[1757292228443,13.44067166,4317.9,4317.8,0.7775]
[1757292228959,12.94330267,4317.9,4317.8,0.7775]
[1757292229256,13.4418744,4317.9,4317.8,0.7775]
[1757292229436,13.5717104,4317.9,4317.8,0.7775]
[1757292229750,13.5717104,4317.9,4317.8,1.2472]
[1757292230655,13.5717104,4317.9,4317.8,0.027]
[1757292230859,13.8685104,4317.9,4317.8,0.027]
[1757292231353,13.5717104,4317.9,4317.8,0.027]
[1757292232351,13.8685104,4317.9,4317.8,0.027]
[1757292233653,23.8419104,4317.9,4317.8,1e-08]
[1757292234423,23.84212794,4317.9,4317.8,1e-08]
[1757292240245,23.36872794,4317.9,4317.8,1e-08]
[1757292241968,23.36980521,4317.9,4317.8,1e-08]
[1757292242467,23.84320521,4317.9,4317.8,1e-08]
[1757292243555,23.84320521,4317.9,4317.6,0.002]
[1757292243556,0.792,4317.5,4317.2,1e-08]
[1757292243759,0.792,4317.5,4316.9,0.002]
[1757292243760,3.10836978,4317.1,4316.9,0.002]
[1757292243945,12.42187834,4317.1,4316.9,0.002]
[1757292244148,13.08002399,4317.1,4316.9,0.002]
[1757292246853,8.10132399,4317.1,4317.0,1.2629]
[1757292247049,11.99632399,4317.1,4317.0,1.2629]
[1757292247383,4.97127078,4317.1,4317.0,1.2629]
[1757292247569,11.36748151,4317.1,4317.0,1.2629]
[1757292247769,11.86627078,4317.1,4317.0,1.2629]
[1757292247972,6.549901,4317.1,4317.0,1.2629]
[1757292248176,5.83435638,4317.1,4317.0,1.2629]
[1757292248486,1.93935638,4317.1,4317.0,1.2629]
[1757292248685,5.83435638,4317.1,4317.0,1.2629]
[1757292248853,5.83435638,4317.1,4317.0,3.57932344]
[1757292249184,5.83435638,4317.1,4317.0,1.2629]
[1757292250162,8.94272616,4317.1,4317.0,1.2629]
[1757292252485,10.06862545,4317.1,4317.0,0.002]
[1757292252683,10.28537994,4317.1,4317.0,0.002]
[1757292253283,10.28537994,4317.1,4317.0,0.3141]
[1757292253480,10.28537994,4317.1,4317.0,0.002]
[1757292254090,6.39037994,4317.1,4317.0,1.2629]
[1757292254401,9.15948065,4317.1,4317.0,1.2629]
[1757292255003,2.94811087,4317.1,4317.0,1.2629]
[1757292255205,6.62535638,4317.1,4317.0,1.2629]
[1757292255503,8.94172616,4317.1,4317.0,1.2629]
[1757292258487,8.94172616,4317.1,4317.0,0.8105]